bitfinex/quotes_BTCUSD_20251202
["timestamp","ask_amount","ask_price","bid_price","bid_amount"]
[1764690634623,0.27560931,90898.0,90894.0,0.01100182]
[1764690634970,0.27560931,90898.0,90892.0,0.23104278]
[1764690634971,0.0110017,90895.0,90890.0,0.01100231]
[1764690635126,0.01100218,90891.0,90888.0,0.00037981]
[1764690635334,0.02156896,90892.0,90890.0,0.2200462]
[1764690635539,0.01100218,90891.0,90888.0,0.00037981]
[1764690635740,0.24161548,90892.0,90889.0,0.22004753]
[1764690635944,0.25261754,90892.0,90888.0,0.23143212]
[1764690636149,0.2310462,90891.0,90888.0,0.00037981]
[1764690636353,0.01905092,90890.0,90888.0,0.00037981]
[1764690636578,0.01905092,90890.0,90888.0,0.22042917]
[1764690636773,0.22004191,90892.0,90889.0,0.23104994]
[1764690636978,0.02156896,90891.0,90889.0,0.23104994]
[1764690637491,0.03257114,90891.0,90888.0,0.00037981]
[1764690637694,0.001,90890.0,90888.0,0.01337981]
[1764690637918,0.03257114,90891.0,90888.0,0.22042993]
[1764690638128,0.02156896,90891.0,90889.0,0.22004713]
[1764690638325,0.02256896,90891.0,90889.0,0.013]
[1764690638673,0.25261526,90891.0,90888.0,0.00037981]
[1764690638914,0.00049,90889.0,90888.0,0.00037981]
[1764690639125,0.02205896,90889.0,90888.0,0.00037981]
[1764690639274,0.07106896,90889.0,90888.0,0.00037981]
[1764690639470,0.13303741,90889.0,90888.0,0.00037981]
[1764690640081,0.35308604,90889.0,90888.0,0.00037981]
[1764690640278,0.33151708,90889.0,90888.0,0.00537981]
[1764690640486,0.33151708,90889.0,90888.0,0.00037981]
[1764690640888,0.33251708,90889.0,90888.0,0.01337981]
[1764690641334,0.33151708,90889.0,90888.0,0.00037981]
[1764690641536,0.32555999,90889.0,90888.0,0.00037981]
[1764690641876,0.34855999,90889.0,90888.0,0.01037981]
[1764690642152,0.33017401,90889.0,90888.0,0.01037981]
[1764690648698,0.28584556,90889.0,90888.0,0.01037981]
[1764690648859,0.33017401,90889.0,90888.0,0.01037981]
[1764690650143,0.11012538,90889.0,90888.0,0.01037981]
[1764690650350,0.35174297,90889.0,90888.0,0.01037981]
[1764690650546,0.33017401,90889.0,90888.0,0.01037981]
[1764690652605,0.35217401,90889.0,90888.0,0.01037981]
[1764690653532,0.33017401,90889.0,90888.0,0.01037981]
[1764690653744,0.37589404,90889.0,90888.0,0.01037981]
[1764690654349,0.35389404,90889.0,90888.0,0.01037981]
[1764690655172,0.37589404,90889.0,90888.0,0.01037981]
[1764690655747,0.35389404,90889.0,90888.0,0.01037981]
[1764690656414,0.30956559,90889.0,90888.0,0.01037981]
[1764690656600,0.28584556,90889.0,90888.0,0.01037981]
[1764690656789,0.28484556,90889.0,90888.0,0.00037981]
[1764690657234,0.28584556,90889.0,90888.0,0.00837981]
[1764690657368,0.28484556,90889.0,90888.0,0.00037981]
[1764690657772,0.06479693,90889.0,90888.0,0.01137981]
[1764690657980,0.08736589,90889.0,90888.0,0.01137981]
[1764690658406,0.11110818,90889.0,90888.0,0.01137981]
[1764690658587,0.11010818,90889.0,90888.0,0.00037981]
[1764690658972,0.08636589,90889.0,90888.0,0.00037981]
[1764690659215,0.30641452,90889.0,90888.0,0.00037981]
[1764690659440,0.28533556,90889.0,90888.0,0.00037981]
[1764690660563,0.02274402,90889.0,90888.0,0.01237981]
[1764690661124,0.00461402,90889.0,90888.0,0.01237981]
[1764690661716,0.00461402,90889.0,90888.0,0.17133981]
[1764690661717,0.001,90889.0,90888.0,0.17133981]
[1764690662535,0.001,90889.0,90888.0,0.19333181]
[1764690662737,0.001,90889.0,90888.0,0.17133981]
[1764690662944,0.001,90889.0,90888.0,0.19333181]
[1764690663170,0.02156896,90923.0,90888.0,0.19333181]
[1764690663393,0.03863,90931.0,90907.0,0.33019506]
[1764690663602,0.01764,90942.0,90907.0,0.46432706]
[1764690663807,0.00364235,90941.0,90907.0,0.46432706]
[1764690664010,0.01099626,90940.0,90907.0,0.44233506]
[1764690664270,0.02521131,90939.0,90907.0,0.44233506]
[1764690664518,0.21994286,90933.0,90907.0,0.42469506]
[1764690664728,0.01099807,90925.0,90907.0,0.42469506]
[1764690664933,0.01783103,90924.0,90907.0,0.42469506]
[1764690665139,0.01099868,90920.0,90907.0,0.33019506]
[1764690665359,0.03863,90916.0,90907.0,0.33019506]
[1764690665585,0.01100037,90906.0,90901.0,0.04573]
[1764690665793,0.23101452,90904.0,90895.0,0.0110017]
[1764690665982,0.04458,90894.0,90891.0,0.01100218]
[1764690666102,0.01100122,90899.0,90888.0,0.01237981]
[1764690666308,0.22004646,90890.0,90888.0,0.00037981]
[1764690666508,0.01100122,90899.0,90888.0,0.00037981]
[1764690666509,0.01100025,90907.0,90888.0,0.00037981]
[1764690666762,0.01100134,90898.0,90894.0,0.01100182]
[1764690666963,0.01100134,90898.0,90895.0,0.22003345]
[1764690667164,0.05558049,90905.0,90897.0,0.01100146]
[1764690667413,0.01100097,90901.0,90894.0,0.01100182]
[1764690667616,0.23102925,90898.0,90895.0,0.0110017]
[1764690667786,0.01100206,90892.0,90888.0,0.01138236]
[1764690668000,0.02156896,90891.0,90889.0,0.22004622]
[1764690668164,0.001,90898.0,90895.0,0.0110017]
[1764690668548,0.01100218,90891.0,90888.0,0.00037981]
[1764690668745,0.00049,90889.0,90888.0,0.00037981]
[1764690668945,0.02205896,90889.0,90888.0,0.00037981]
[1764690669203,0.07106896,90889.0,90888.0,0.00037981]
[1764690669789,0.02205896,90889.0,90888.0,0.00037981]
[1764690669995,0.23102725,90899.0,90894.0,0.01100182]
[1764690670339,0.01100097,90901.0,90896.0,0.22003024]
[1764690670538,0.26459221,90905.0,90894.0,0.01100182]
[1764690670539,0.0495,90922.0,90907.0,0.22000506]
[1764690670866,0.01764,90918.0,90907.0,0.22000506]
[1764690671049,0.02863892,90918.0,90907.0,0.22000506]
[1764690671223,0.01099904,90917.0,90907.0,0.22000506]
[1764690671423,0.02156896,90916.0,90907.0,0.37894506]
[1764690671647,0.01099747,90930.0,90907.0,0.37894506]
[1764690671968,0.01099807,90925.0,90907.0,0.37894506]
[1764690672200,0.03256715,90924.0,90907.0,0.22000506]
[1764690672512,0.0109988,90919.0,90907.0,0.22000506]
[1764690672719,0.21998986,90914.0,90906.0,0.22000636]
[1764690672921,0.01099904,90917.0,90896.0,0.02000158]
[1764690672922,0.01123619,90908.0,90896.0,0.02000158]
[1764690673162,0.01092753,90907.0,90905.0,0.23100798]
[1764690673369,0.00023606,90908.0,90906.0,0.2200055]
[1764690673743,0.00023606,90908.0,90907.0,0.17894]
[1764690675221,0.00023606,90908.0,90907.0,0.0801]
[1764690675428,0.00023606,90908.0,90907.0,0.17894]
[1764690675667,0.00023606,90908.0,90907.0,0.200932]
[1764690675848,0.00023606,90908.0,90907.0,0.17894]
[1764690676417,0.01099481,90952.0,90928.0,0.01099771]
[1764690676634,0.07902918,90959.0,90928.0,0.01099771]
[1764690676635,0.23092079,90941.0,90936.0,0.23092989]
[1764690676861,0.02156896,90940.0,90936.0,0.01099674]
[1764690677107,0.23142041,90937.0,90932.0,0.01099722]
[1764690677280,0.02156896,90936.0,90934.0,0.01099698]
[1764690677484,0.01099662,90937.0,90933.0,0.0109971]
[1764690677685,0.0216524,90936.0,90933.0,0.23093766]
[1764690677963,0.0216524,90936.0,90935.0,0.21993731]
[1764690678200,8.344e-05,90936.0,90935.0,0.26676731]
[1764690678415,0.00090933,90936.0,90935.0,0.42570731]
[1764690678625,0.00090933,90936.0,90935.0,0.46533931]
[1764690679033,0.00090933,90936.0,90935.0,0.44334731]
[1764690679247,0.00090933,90936.0,90935.0,0.46533931]
[1764690679912,0.00090933,90936.0,90935.0,0.44334731]
[1764690680113,0.00090933,90936.0,90935.0,0.46533931]
[1764690680317,0.00090933,90936.0,90935.0,0.44334731]
[1764690680952,0.00290933,90936.0,90935.0,0.44334731]
[1764690681171,0.00290933,90936.0,90935.0,0.46533931]
[1764690681964,0.00290933,90936.0,90935.0,0.44334731]
[1764690682174,0.00290933,90936.0,90935.0,0.42570731]
[1764690683501,0.00390933,90936.0,90935.0,0.42570731]
[1764690683703,0.00390933,90936.0,90935.0,0.44769931]
[1764690683910,0.00390933,90936.0,90935.0,0.42570731]
[1764690684118,0.0004,90970.0,90969.0,0.21985511]
[1764690684337,0.0004,90970.0,90969.0,0.29797492]
[1764690684567,0.0004,90970.0,90969.0,0.39681492]
[1764690684765,0.0004,90970.0,90969.0,0.37917492]
[1764690685311,0.0004,90970.0,90969.0,0.38117492]
[1764690685536,0.0004,90970.0,90969.0,0.42550337]
[1764690685732,0.0004,90970.0,90969.0,0.39600607]
[1764690686190,0.0024,90970.0,90969.0,0.39600607]
[1764690686528,0.0024,90970.0,90969.0,0.41799807]
[1764690686668,0.0024,90970.0,90969.0,0.39600607]
[1764690687544,0.0004,90970.0,90969.0,0.39600607]
[1764690687858,0.0024,90970.0,90969.0,0.39600607]
[1764690688018,0.0024,90970.0,90969.0,0.41799807]
[1764690688221,0.0024,90970.0,90969.0,0.39600607]
[1764690688630,0.0024,90970.0,90969.0,0.41364607]
[1764690688788,0.0024,90970.0,90969.0,0.39600607]
[1764690688988,0.0024,90970.0,90969.0,0.41364607]
[1764690689194,0.0024,90970.0,90969.0,0.43563807]
[1764690689673,0.0004,90980.0,90969.0,0.41364607]
[1764690689880,26.85293647,91000.0,90999.0,0.32468263]
[1764690690079,26.85293647,91000.0,90999.0,0.34232263]
[1764690690219,25.53466119,91000.0,90999.0,0.32468263]
[1764690690428,24.25114381,91000.0,90999.0,2.43872083]
[1764690690667,23.98767135,91000.0,90999.0,2.36431463]
[1764690690938,23.72650222,91000.0,90999.0,2.37531513]
[1764690691115,23.72650222,91000.0,90999.0,2.34110894]
[1764690691116,23.46525937,91000.0,90999.0,2.34110894]
[1764690691388,3.07942348,91000.0,90999.0,0.34150136]
[1764690691545,0.06107565,91171.0,91136.0,0.01097261]
[1764690691771,0.06107565,91171.0,91000.0,2.04337915]
[1764690691772,0.00360696,91170.0,91140.0,0.81794465]
[1764690691987,0.00360696,91170.0,91117.0,0.07476652]
[1764690691988,0.01096876,91168.0,91093.0,0.0052]
[1764690692199,0.02156896,91167.0,91151.0,0.0104908]
[1764690692405,0.01788,91175.0,91164.0,0.01096924]
[1764690692614,0.06600491,91200.0,91156.0,0.0109702]
[1764690692615,0.09302,91194.0,91156.0,0.0109702]
[1764690692821,0.02156896,91193.0,91168.0,0.21937304]
[1764690693026,0.09302,91194.0,91164.0,0.00037981]
[1764690693027,0.01788,91182.0,91164.0,0.00037981]
[1764690693244,0.02156896,91182.0,91171.0,0.0109684]
[1764690693457,0.03,91188.0,91164.0,0.00037981]
[1764690693458,0.03948896,91181.0,91164.0,0.00037981]
[1764690693652,0.01792,91181.0,91164.0,0.00037981]
[1764690693868,0.03948896,91180.0,91164.0,0.00037981]
[1764690694082,0.01792,91179.0,91171.0,0.0109684]
[1764690694301,0.044555,91183.0,91133.0,1.09728969]
[1764690694536,0.00038026,91183.0,91168.0,0.01096876]
[1764690694760,0.04727,91204.0,91178.0,0.05]
[1764690694970,0.05823443,91204.0,91178.0,0.04058309]
[1764690695181,0.01096479,91201.0,91178.0,0.03998309]
[1764690695390,0.0109625,91220.0,91189.0,0.01096623]
[1764690695620,0.01096142,91229.0,91195.0,0.01096551]
[1764690695834,0.01824,91218.0,91193.0,0.01096575]
[1764690696050,0.22424662,91222.0,91193.0,0.01096575]
[1764690696051,0.005,91222.0,91202.0,0.01096467]
[1764690696258,0.005,91222.0,91218.0,0.04651]
[1764690696674,0.005,91222.0,91218.0,0.35577497]
[1764690696878,0.005,91222.0,91218.0,0.35457497]
[1764690697241,0.005,91222.0,91218.0,0.13532]
[1764690697461,0.01096238,91221.0,91218.0,0.00011309]
[1764690697713,0.005,91222.0,91218.0,0.00011309]
[1764690698144,0.0202,91219.0,91218.0,0.00011309]
[1764690698354,0.02024,91219.0,91218.0,0.00011309]
[1764690698621,0.003,91219.0,91218.0,0.09012309]
[1764690699251,0.0212,91219.0,91218.0,0.09012309]
[1764690699465,0.003,91219.0,91218.0,0.09012309]
[1764690699898,0.005,91222.0,91221.0,2.21924776]
[1764690700108,0.005,91222.0,91221.0,0.21924776]
[1764690700313,0.005,91222.0,91221.0,2.33005976]
[1764690700735,0.005,91222.0,91221.0,0.30806776]
[1764690701468,0.02324,91222.0,91221.0,0.08882]
[1764690701734,0.0007294,91222.0,91221.0,0.30806776]
[1764690701931,0.0007294,91222.0,91221.0,0.08882]
[1764690702134,0.0190094,91222.0,91219.0,0.01096262]
[1764690702339,0.0007294,91222.0,91218.0,0.09989583]
[1764690702547,0.02924238,91221.0,91218.0,0.00011309]
[1764690702765,0.00643639,91219.0,91218.0,0.00011309]
[1764690703178,0.1654638,91219.0,91218.0,0.00011309]
[1764690703459,0.01096719,91181.0,91172.0,0.02193655]
[1764690703666,0.23762634,91180.0,91178.0,0.03998324]
[1764690703899,0.01096647,91187.0,91178.0,0.03998324]
[1764690703900,0.0052631,91179.0,91178.0,0.03998324]
[1764690704127,0.0235431,91179.0,91178.0,0.03998324]
[1764690704573,0.1166731,91179.0,91178.0,0.03998324]
[1764690704804,0.1166731,91179.0,91178.0,0.00707327]
[1764690705040,0.01097152,91145.0,91128.0,0.02194715]
[1764690705262,0.01824,91144.0,91137.0,0.01097249]
[1764690705480,0.01824,91144.0,91137.0,0.03291747]
[1764690705704,0.01824,91144.0,91137.0,0.01097249]
[1764690705932,0.01824,91144.0,91142.0,0.21943637]
[1764690706156,0.01824,91144.0,91128.0,0.21985062]
[1764690706418,0.81794465,91138.0,91128.0,0.00038026]
[1764690706657,0.01097261,91136.0,91128.0,0.00038026]
[1764690706877,0.01097321,91131.0,91128.0,0.00038026]
[1764690707088,0.23043906,91131.0,91128.0,0.00038026]
[1764690707307,0.01824,91130.0,91128.0,0.00038026]
[1764690707511,0.01824,91129.0,91128.0,0.00038026]
[1764690708557,0.2377091,91129.0,91128.0,0.00038026]
[1764690709392,0.3308391,91129.0,91128.0,0.00038026]
[1764690709822,0.01824,91129.0,91128.0,0.00038026]
[1764690710505,0.02024,91129.0,91128.0,0.30986177]
[1764690710721,0.02403504,91129.0,91128.0,0.00038026]
[1764690711143,0.00579504,91129.0,91128.0,0.00038026]
[1764690711358,0.02403504,91129.0,91128.0,0.00038026]
[1764690711991,0.00579504,91129.0,91128.0,0.00038026]
[1764690712197,0.00379504,91129.0,91128.0,0.02232741]
[1764690712410,0.02203504,91129.0,91128.0,0.02232741]
[1764690712617,0.00479504,91129.0,91128.0,0.02232741]
[1764690712835,0.02303504,91129.0,91128.0,0.01482623]
[1764690713042,0.02203504,91129.0,91128.0,0.00038026]
[1764690713261,0.00379504,91129.0,91128.0,0.00038026]
[1764690713468,0.02303504,91129.0,91128.0,0.00038026]
[1764690713959,0.02203504,91129.0,91128.0,0.00038026]
[1764690714180,0.02403504,91129.0,91128.0,0.00038026]
[1764690714397,0.02399504,91129.0,91128.0,0.00038026]
[1764690714604,0.11712504,91129.0,91128.0,0.00038026]
[1764690714802,0.16670504,91129.0,91128.0,0.00038026]
[1764690715288,0.16470504,91129.0,91128.0,0.00038026]
[1764690715738,0.23303349,91129.0,91128.0,0.00038026]
[1764690716209,0.01097718,91098.0,91087.0,0.01097851]
[1764690716423,0.01097718,91098.0,91086.0,0.02195727]
[1764690716424,0.0182,91097.0,91086.0,0.02195727]
[1764690716601,0.00259003,91088.0,91075.0,0.23057889]
[1764690716838,0.04958,91081.0,91062.0,0.04662]
[1764690717040,0.04958,91081.0,91070.0,0.21960935]
[1764690717041,0.06778,91081.0,91070.0,0.21960935]
[1764690717246,0.06778,91081.0,91068.0,0.0109808]
[1764690717450,0.0182,91081.0,91075.0,0.01097996]
[1764690717669,0.0182,91081.0,91075.0,0.23057892]
[1764690717875,0.09313,91091.0,91084.0,0.01097887]
[1764690718049,0.0182,91090.0,91087.0,0.01097851]
[1764690718293,0.0182,91089.0,91083.0,0.01097899]
[1764690718499,0.21958262,91082.0,91060.0,0.01098177]
[1764690718699,0.21958262,91082.0,91080.0,0.0014]
[1764690718851,0.09313,91081.0,91080.0,0.0014]
[1764690719071,0.09313,91081.0,91080.0,0.0004]
[1764690720554,0.09313,91081.0,91038.0,0.01098442]
[1764690720555,0.01098225,91056.0,91038.0,0.01098442]
[1764690720759,0.01098297,91050.0,91032.0,0.02197029]
[1764690721156,0.01098345,91046.0,91032.0,0.01566283]
[1764690721369,0.21970778,91030.0,90987.0,0.09001]
[1764690721591,0.01098756,91012.0,90997.0,0.01098937]
[1764690721792,0.0182,91011.0,91002.0,0.01098876]
[1764690721943,0.01098635,91022.0,91002.0,0.01098876]
[1764690721944,0.0182,91010.0,91004.0,0.01098852]
[1764690722156,0.0182,91010.0,90977.0,0.09001]
[1764690722157,0.0182,91010.0,91001.0,0.23076669]
[1764690722514,0.0182,91010.0,90992.0,0.21979777]
[1764690722515,0.01098792,91009.0,90994.0,0.01098973]
[1764690722748,0.01098792,91009.0,90914.0,0.09288774]
[1764690722749,0.00023567,91008.0,91007.0,0.24175531]
[1764690723171,0.00023567,91008.0,91007.0,0.21976331]
[1764690723362,0.00023567,91008.0,91007.0,0.24173964]
[1764690723519,0.00023567,91008.0,91007.0,0.33174964]
[1764690723699,0.00023567,91008.0,91007.0,0.30977331]
[1764690723904,0.00023567,91008.0,91007.0,0.33176531]
[1764690724128,0.00037922,91030.0,91029.0,0.2197102]
[1764690724478,0.01861922,91030.0,91029.0,0.24168122]
[1764690724690,0.01861922,91030.0,91029.0,0.2197102]
[1764690724846,0.01861922,91030.0,91029.0,0.24168122]
[1764690725501,0.00037922,91030.0,91029.0,0.26367322]
[1764690725722,0.01961922,91030.0,91029.0,0.2197102]
[1764690726896,0.01961922,91030.0,91029.0,0.26637122]
[1764690727076,0.00137922,91030.0,91029.0,0.2444002]
[1764690727266,0.01961922,91030.0,91029.0,0.2444002]
[1764690727467,0.00137922,91030.0,91029.0,0.2444002]
[1764690727663,0.01961922,91030.0,91027.0,0.21971284]
[1764690727988,0.01861922,91030.0,91027.0,0.01098575]
[1764690728196,0.00137922,91030.0,91029.0,0.2444002]
[1764690728345,0.01961922,91030.0,91029.0,0.2444002]
[1764690728548,0.01961922,91030.0,91029.0,0.2197102]
[1764690728750,0.00037922,91030.0,91029.0,0.2197102]
[1764690728967,0.01961922,91030.0,91029.0,0.2197102]
[1764690729186,0.01961922,91030.0,91024.0,0.01098611]
[1764690729187,0.11721922,91030.0,91026.0,0.01098587]
[1764690729387,0.11721922,91030.0,91028.0,0.21971177]
[1764690729715,0.04728,91029.0,91027.0,0.23070077]
[1764690729875,0.04728,91029.0,91027.0,0.23070027]
[1764690730486,0.00137922,91030.0,91029.0,0.2197102]
[1764690730681,0.00137922,91030.0,91024.0,0.23070483]
[1764690730682,0.0976,91076.0,91068.0,0.0109808]
[1764690730911,0.0976,91076.0,91073.0,0.0109802]
[1764690731087,0.0976,91075.0,91068.0,0.00011327]
[1764690731289,0.26689369,91069.0,91068.0,0.00011327]
[1764690731488,0.36449369,91069.0,91068.0,3.27e-06]
[1764690731701,0.36449369,91069.0,91029.0,0.01098551]
[1764690731702,0.01098321,91048.0,91029.0,0.01098551]
[1764690731899,0.01824,91047.0,91035.0,0.01098478]
[1764690732101,0.01098297,91050.0,91040.0,0.01098418]
[1764690732306,0.02156896,91054.0,91029.0,0.00011331]
[1764690732307,0.01098333,91047.0,91029.0,0.00011331]
[1764690732485,0.01098321,91048.0,91038.0,0.01098442]
[1764690732690,0.01824,91049.0,91043.0,0.01098382]
[1764690732908,0.0976,91061.0,91057.0,0.01098213]
[1764690733105,0.0976,91061.0,91044.0,0.0219674]
[1764690733106,0.01098273,91052.0,91043.0,0.01098382]
[1764690733329,0.01824,91060.0,91051.0,0.23063861]
[1764690733532,0.05272,91128.0,91030.0,0.02481]
[1764690733533,0.0976,91090.0,91073.0,0.0109802]
[1764690733789,0.01828,91088.0,91031.0,2.0]
[1764690733994,0.01828,91088.0,91085.0,0.23055333]
[1764690734417,0.11588,91088.0,91082.0,0.01097911]
[1764690734551,0.11588,91088.0,91084.0,0.01097887]
[1764690734756,0.11588,91088.0,91065.0,0.01098116]
[1764690734757,0.01318642,91083.0,91065.0,0.01098116]
[1764690735070,0.11588,91088.0,91085.0,0.001]
[1764690735452,0.00229566,91086.0,91085.0,0.001]
[1764690735656,0.00229566,91086.0,91085.0,0.21957512]
[1764690735859,0.00229566,91086.0,91084.0,0.21957626]
[1764690736034,0.01828,91088.0,91087.0,0.2195703]
[1764690736286,0.01828,91088.0,91079.0,0.21958851]
[1764690736513,0.01828,91088.0,91085.0,0.23055273]
[1764690736766,0.43894613,91128.0,91085.0,0.23055273]
[1764690736767,0.1085761,91107.0,91094.0,0.01097767]
[1764690736980,0.01828,91096.0,91090.0,0.01097815]
[1764690737171,0.01828,91096.0,91093.0,0.01097779]
[1764690737697,0.12996614,91140.0,91090.0,0.01097815]
[1764690737901,0.12996614,91140.0,91118.0,0.01097477]
[1764690737902,0.04728,91128.0,91118.0,0.01097477]
[1764690738188,0.11588,91127.0,91120.0,0.01097453]
[1764690738317,0.11588,91127.0,91124.0,0.01097405]
[1764690738525,0.01828,91126.0,91124.0,0.01097405]
[1764690738707,0.01828,91126.0,91110.0,0.01097574]
[1764690738708,0.0976,91125.0,91110.0,0.01097574]
[1764690738911,0.0976,91125.0,91118.0,0.23046843]
[1764690739170,0.01828,91126.0,91114.0,0.01097526]
[1764690739376,0.01828,91126.0,91123.0,0.01097417]
[1764690739601,0.01828,91126.0,91124.0,0.21947884]
[1764690740029,0.04728,91136.0,91129.0,0.23044179]
[1764690740237,0.01828,91135.0,91119.0,0.01097465]
[1764690740447,0.02156896,91134.0,91117.0,0.21949608]
[1764690740631,0.01828,91135.0,91129.0,0.01097345]
[1764690740836,0.01828,91135.0,91125.0,0.01097393]
[1764690740837,0.01828,91135.0,91127.0,0.23044679]
[1764690741045,0.01828,91135.0,91115.0,0.21950186]
[1764690741046,0.00037976,91140.0,91138.0,0.21944743]
[1764690741396,0.00037976,91140.0,91137.0,0.23042232]
[1764690741626,0.00037976,91140.0,91121.0,0.21948837]
[1764690741627,0.16316,91139.0,91121.0,0.21948837]
[1764690741787,0.16316,91139.0,91124.0,0.21948114]
[1764690741788,0.00382391,91138.0,91124.0,0.21948114]
[1764690741993,0.2307952,91140.0,91138.0,0.21944743]
[1764690741994,0.01865976,91140.0,91138.0,0.21944743]
[1764690742216,0.01828,91139.0,91138.0,0.21944743]
[1764690742462,0.00137976,91140.0,91138.0,0.21944743]
[1764690742798,0.01828,91139.0,91138.0,0.21944743]
[1764690742913,0.01828,91139.0,91137.0,0.01097249]
[1764690743139,0.01828,91139.0,91125.0,0.21947733]
[1764690743140,0.16316,91139.0,91128.0,0.01097357]
[1764690743346,0.16316,91139.0,91129.0,0.01097345]
[1764690743547,0.01097249,91137.0,91131.0,0.01097321]
[1764690743769,0.16316,91139.0,91132.0,0.01097309]
[1764690743967,0.16316,91139.0,91126.0,0.01097381]
[1764690743968,0.04728,91142.0,91125.0,0.01097393]
[1764690744172,0.01097285,91134.0,91125.0,0.00037976]
[1764690744424,0.04728,91126.0,91125.0,0.00037976]
[1764690744626,0.28499632,91126.0,91125.0,0.00037976]
[1764690744878,0.38259632,91126.0,91125.0,0.00037976]
[1764690745082,0.16312,91126.0,91125.0,0.00037976]
[1764690745221,0.38259632,91126.0,91125.0,0.00037976]
[1764690745421,0.16312,91126.0,91125.0,0.00037976]
[1764690745887,0.17612893,91126.0,91125.0,0.00037976]
[1764690746074,0.40416528,91126.0,91125.0,0.00037976]
[1764690746269,0.38259632,91126.0,91125.0,0.00037976]
[1764690746424,0.14488,91126.0,91125.0,0.00037976]
[1764690746645,0.06552,91126.0,91125.0,0.00037976]
[1764690746888,0.16312,91126.0,91125.0,0.00037976]
[1764690747432,0.18468896,91126.0,91125.0,0.00037976]
[1764690747749,0.18816035,91126.0,91125.0,0.00237976]
[1764690748371,0.18816035,91126.0,91125.0,0.00037976]
[1764690748573,0.17360655,91126.0,91125.0,0.002]
[1764690748773,0.23617501,91126.0,91125.0,0.002]
[1764690748992,0.44754727,91126.0,91125.0,0.002]
[1764690749349,0.16659139,91126.0,91125.0,0.002]
[1764690749748,0.38606771,91126.0,91125.0,0.002]
[1764690749923,0.38606771,91126.0,91102.0,0.23051038]
[1764690749924,0.01097429,91122.0,91105.0,0.23050247]
[1764690750129,0.23049551,91109.0,91098.0,0.01097718]
[1764690750310,0.01097634,91105.0,91098.0,0.01097718]
[1764690750508,0.0109761,91107.0,91099.0,0.01097706]
[1764690750713,0.0109761,91107.0,91084.0,0.21957553]
[1764690751071,0.01098128,91064.0,91041.0,0.21967956]
[1764690751258,0.01098273,91052.0,91042.0,0.02196788]
[1764690751470,0.01098201,91058.0,91043.0,0.02196764]
[1764690751673,0.01098213,91057.0,91045.0,0.01098357]
[1764690751896,0.04728,91061.0,91045.0,0.02196715]
[1764690752094,0.04728,91044.0,91035.0,0.21969357]
[1764690752320,0.01824,91043.0,91042.0,0.21967762]
[1764690752593,0.01824,91043.0,91037.0,0.01098454]
[1764690752831,0.11584,91043.0,91035.0,0.01109809]
[1764690753033,0.11584,91043.0,91039.0,0.0109843]
[1764690753254,0.0976,91059.0,91035.0,0.00011331]
[1764690753455,0.04432845,91076.0,91040.0,0.01098418]
[1764690753456,0.01098285,91051.0,91040.0,0.01098418]
[1764690753605,0.01098297,91050.0,91039.0,0.0109843]
[1764690753809,0.09046,91053.0,91044.0,0.2306577]
[1764690754009,0.01824,91052.0,91046.0,0.01098345]
[1764690754384,0.26397107,91058.0,91046.0,0.01098345]
[1764690754385,0.21964077,91058.0,91047.0,0.02196667]
[1764690754561,0.21964077,91058.0,91037.0,0.21969089]
[1764690754562,0.1087,91051.0,91037.0,0.21969089]
[1764690754716,0.1087,91051.0,91045.0,0.01098357]
[1764690754929,0.09046,91069.0,91056.0,0.21964505]
[1764690755127,0.09046,91069.0,91060.0,0.2196354]
[1764690755332,0.06552,91061.0,91055.0,0.01098237]
[1764690755538,0.01824,91060.0,91047.0,0.01098333]
[1764690755748,0.02922177,91060.0,91052.0,0.01098273]
[1764690755948,0.01824,91060.0,91056.0,0.01098225]
[1764690756179,0.01824,91060.0,91057.0,0.23062477]
[1764690756392,0.01824,91060.0,91057.0,0.01098213]
[1764690756589,0.01824,91060.0,91057.0,0.23062477]
[1764690756741,0.01824,91060.0,91059.0,0.21963781]
[1764690756950,0.09992,91086.0,91074.0,0.01098008]
[1764690757305,0.09992,91086.0,91045.0,0.43933924]
[1764690757306,0.04755,91093.0,91092.0,0.01097791]
[1764690757514,0.09992,91111.0,91100.0,0.01097694]
[1764690757735,0.21952769,91105.0,91092.0,0.23053394]
[1764690757938,0.23049943,91107.0,91097.0,0.0109773]
[1764690758068,0.01097634,91105.0,91097.0,0.01109061]
[1764690758287,0.01097682,91101.0,91097.0,0.00011331]
[1764690758506,0.11816,91110.0,91100.0,0.01097694]
[1764690758750,0.01824,91109.0,91097.0,0.23063587]
[1764690758982,0.01097622,91106.0,91099.0,0.01097706]
[1764690759182,0.02156896,91108.0,91101.0,0.01097682]
[1764690759402,0.02156896,91109.0,91100.0,0.01097694]
[1764690759604,0.01824,91107.0,91105.0,0.21952691]
[1764690759832,0.11089453,91120.0,91111.0,0.01097562]
[1764690759833,0.09992,91120.0,91111.0,0.01097562]
[1764690760070,0.23047036,91118.0,91109.0,0.21951725]
[1764690760243,0.02921465,91119.0,91111.0,0.23048765]
[1764690760474,0.02921465,91119.0,91101.0,0.001]
[1764690760475,0.01097586,91109.0,91101.0,0.001]
[1764690760647,0.01097646,91104.0,91101.0,0.001]
[1764690760846,0.01097622,91106.0,91095.0,0.01097755]
[1764690761048,0.01824,91108.0,91107.0,0.2195221]
[1764690761404,0.26675682,91126.0,91117.0,0.0109749]
[1764690761610,0.00369974,91120.0,91117.0,0.0109749]
[1764690761809,0.10361974,91120.0,91116.0,0.01097502]
[1764690762007,0.01097465,91119.0,91112.0,0.23048501]
[1764690762219,0.00320694,91117.0,91116.0,0.21950041]
[1764690762395,0.00320694,91117.0,91114.0,0.23048004]
[1764690762598,0.09992,91117.0,91112.0,0.23048318]
[1764690762851,0.09992,91117.0,91104.0,0.01097646]
[1764690762852,0.23048378,91113.0,91104.0,0.01097646]
[1764690763058,0.09992,91117.0,91099.0,0.01097706]
[1764690763059,0.0182,91112.0,91099.0,0.01097706]
[1764690763289,0.0182,91112.0,91106.0,0.01097622]
[1764690763492,0.0182,91112.0,91110.0,0.2195144]
[1764690764080,0.0182,91112.0,91110.0,0.2193444]
[1764690764385,0.21944453,91140.0,91107.0,0.2195221]
[1764690764386,0.04755,91134.0,91130.0,0.01097333]
[1764690764624,0.01097393,91125.0,91114.0,0.23047907]
[1764690764761,0.01097393,91125.0,91044.0,0.13452309]
[1764690764762,0.01097393,91125.0,91115.0,0.01097514]
[1764690764963,0.01097393,91125.0,91118.0,0.23046837]
[1764690765166,0.01097393,91125.0,91116.0,0.23047453]
[1764690765167,0.01097429,91122.0,91116.0,0.23047453]
[1764690765359,0.0182,91121.0,91119.0,0.21949153]
[1764690765566,0.0182,91121.0,91119.0,0.00011331]
[1764690766166,0.23768902,91121.0,91119.0,0.00011331]
[1764690766591,0.0182,91121.0,91119.0,0.00011331]